[Event "*** Titled Tuesday Blitz"]
[Site "Chess.com"]
[Date "2020.11.03"]
[Round "10"]
[White "dopolian"]
[Black "Alindsay211"]
[Result "0-1"]
[WhiteElo "2354"]
[BlackElo "2453"]
[TimeControl "180+1"]
[EndTime "11:58:57 PST"]
[Termination "Alindsay211 won by resignation"]

1. e4 {[%clk 0:03:00.9]} 1... c5 {[%clk 0:02:56.4]} 2. Nf3 {[%clk 0:03:00.8]}
2... d6 {[%clk 0:02:55.8]} 3. d4 {[%clk 0:03:01.3]} 3... cxd4 {[%clk 0:02:54.4]}
4. Nxd4 {[%clk 0:03:02.2]} 4... Nf6 {[%clk 0:02:53]} 5. Nc3 {[%clk 0:03:02.6]}
5... g6 {[%clk 0:02:51.8]} 6. Be3 {[%clk 0:03:02.1]} 6... Bg7 {[%clk 0:02:51.1]}
7. f3 {[%clk 0:03:02.3]} 7... Nc6 {[%clk 0:02:49]} 8. Qd2 {[%clk 0:03:00.8]}
8... O-O {[%clk 0:02:46.4]} 9. g4 {[%clk 0:03:00.7]} 9... Be6 {[%clk 0:02:35.4]}
10. O-O-O {[%clk 0:02:59.3]} 10... Nd7 {[%clk 0:02:31.6]} 11. h4 {[%clk
0:02:38.9]} 11... Qa5 {[%clk 0:02:26.7]} 12. a3 {[%clk 0:02:35.8]} 12... Rfc8
{[%clk 0:02:19.7]} 13. h5 {[%clk 0:02:21.3]} 13... g5 {[%clk 0:02:09.1]} 14. h6
{[%clk 0:02:14.4]} 14... Bxd4 {[%clk 0:02:05.3]} 15. Bxd4 {[%clk 0:02:11.4]}
15... Nxd4 {[%clk 0:02:03]} 16. Qxd4 {[%clk 0:02:11.3]} 16... Qe5 {[%clk
0:02:00.8]} 17. Qe3 {[%clk 0:02:02.9]} 17... Rc5 {[%clk 0:01:55.8]} 18. Bd3
{[%clk 0:01:47.2]} 18... Rac8 {[%clk 0:01:48.1]} 19. Ne2 {[%clk 0:01:40.3]}
19... f6 {[%clk 0:01:41.6]} 20. f4 {[%clk 0:01:13.3]} 20... gxf4 {[%clk
0:01:38.3]} 21. Nxf4 {[%clk 0:01:14.2]} 21... Bf7 {[%clk 0:01:27.1]} 22. Kb1
{[%clk 0:01:04.1]} 22... b5 {[%clk 0:01:19.1]} 23. Rhg1 {[%clk 0:00:34.8]} 23...
Kh8 {[%clk 0:01:12.5]} 24. Qf3 {[%clk 0:00:23.3]} 24... Nb6 {[%clk 0:01:08.5]}
25. g5 {[%clk 0:00:20.9]} 25... Na4 {[%clk 0:01:01.9]} 26. c3 {[%clk 0:00:13.4]}
26... Rxc3 {[%clk 0:00:50.6]} 27. Qf2 {[%clk 0:00:05.9]} 27... Rc2 {[%clk
0:00:47.1]} 28. Qxc2 {[%clk 0:00:02.3]} 28... Rxc2 {[%clk 0:00:45.5]} 0-1

[Event "*** Titled Tuesday Blitz"]
[Site "Chess.com"]
[Date "2020.11.03"]
[Round "10"]
[White "davigator"]
[Black "redbaron8888"]
[Result "0-1"]
[WhiteElo "2389"]
[BlackElo "2549"]
[TimeControl "180+1"]
[EndTime "11:58:58 PST"]
[Termination "redbaron8888 won by resignation"]

1. e4 {[%clk 0:03:00.9]} 1... c5 {[%clk 0:02:57.9]} 2. Nf3 {[%clk 0:02:58.4]}
2... d6 {[%clk 0:02:57.6]} 3. d4 {[%clk 0:02:57.6]} 3... cxd4 {[%clk 0:02:57.3]}
4. Nxd4 {[%clk 0:02:57.7]} 4... Nf6 {[%clk 0:02:57.4]} 5. Nc3 {[%clk 0:02:55.4]}
5... a6 {[%clk 0:02:55.9]} 6. Bg5 {[%clk 0:02:54.7]} 6... e6 {[%clk 0:02:55.5]}
7. f4 {[%clk 0:02:54.6]} 7... Qc7 {[%clk 0:02:55.4]} 8. Qe2 {[%clk 0:02:52.3]}
8... b5 {[%clk 0:02:48.8]} 9. g4 {[%clk 0:02:48.8]} 9... b4 {[%clk 0:02:44.1]}
10. Nd1 {[%clk 0:02:42.8]} 10... Bb7 {[%clk 0:02:34.6]} 11. Bg2 {[%clk
0:02:42.6]} 11... Nbd7 {[%clk 0:02:29.9]} 12. Nf2 {[%clk 0:02:42.3]} 12... Be7
{[%clk 0:02:20.8]} 13. O-O-O {[%clk 0:02:40.2]} 13... h6 {[%clk 0:02:19.2]} 14.
Bxf6 {[%clk 0:02:40.2]} 14... Bxf6 {[%clk 0:02:16.6]} 15. h4 {[%clk 0:02:40.5]}
15... g5 {[%clk 0:01:56.2]} 16. hxg5 {[%clk 0:02:36.9]} 16... hxg5 {[%clk
0:01:55.8]} 17. Rxh8+ {[%clk 0:02:36.4]} 17... Bxh8 {[%clk 0:01:56.7]} 18. f5
{[%clk 0:02:35.4]} 18... Nc5 {[%clk 0:01:37.8]} 19. Qd2 {[%clk 0:02:26.4]} 19...
Rc8 {[%clk 0:01:26.8]} 20. Kb1 {[%clk 0:02:23.2]} 20... Bf6 {[%clk 0:01:25.1]}
21. Rc1 {[%clk 0:02:18.6]} 21... Qb6 {[%clk 0:01:15.6]} 22. Rd1 {[%clk
0:02:05.4]} 22... Na4 {[%clk 0:01:12.2]} 23. Nb3 {[%clk 0:02:05.2]} 23... Ke7
{[%clk 0:01:07.7]} 24. e5 {[%clk 0:01:59.4]} 24... Bxe5 {[%clk 0:01:01.4]} 25.
Qxg5+ {[%clk 0:01:56.1]} 25... Bf6 {[%clk 0:01:01]} 26. Bxb7 {[%clk 0:01:40.8]}
26... Rxc2 {[%clk 0:00:44.1]} 27. Kxc2 {[%clk 0:01:31.3]} 27... Bxg5 {[%clk
0:00:43.6]} 28. Ne4 {[%clk 0:01:29.2]} 28... Qxb7 {[%clk 0:00:36]} 29. Nxg5
{[%clk 0:01:29.1]} 29... Qg2+ {[%clk 0:00:35]} 30. Rd2 {[%clk 0:01:28.9]} 30...
Qxg4 {[%clk 0:00:31.1]} 31. Nxe6 {[%clk 0:01:14]} 31... fxe6 {[%clk 0:00:28.5]}
32. fxe6 {[%clk 0:01:14.5]} 32... Qc4+ {[%clk 0:00:25.6]} 33. Kb1 {[%clk
0:01:13.8]} 33... Qe4+ {[%clk 0:00:22.7]} 34. Kc1 {[%clk 0:01:12.9]} 34... Qxe6
{[%clk 0:00:20.1]} 35. Kd1 {[%clk 0:01:12.1]} 35... Qg4+ {[%clk 0:00:19.7]} 36.
Kc2 {[%clk 0:01:11.4]} 36... Nc5 {[%clk 0:00:18.9]} 37. Nd4 {[%clk 0:01:10.7]}
37... Qg6+ {[%clk 0:00:17.6]} 38. Kd1 {[%clk 0:01:09.1]} 38... Qb1+ {[%clk
0:00:16.1]} 39. Ke2 {[%clk 0:01:08.5]} 39... Qxa2 {[%clk 0:00:14.6]} 40. b3
{[%clk 0:01:05.9]} 40... Qb1 {[%clk 0:00:12.9]} 41. Nc6+ {[%clk 0:01:05.2]}
41... Kd7 {[%clk 0:00:12.1]} 42. Nd4 {[%clk 0:01:03.8]} 42... Nxb3 {[%clk
0:00:11.9]} 0-1

[Event "*** Titled Tuesday Blitz"]
[Site "Chess.com"]
[Date "2020.11.03"]
[Round "10"]
[White "kleopl"]
[Black "MaxLeto"]
[Result "1-0"]
[WhiteElo "2448"]
[BlackElo "2348"]
[TimeControl "180+1"]
[EndTime "11:59:04 PST"]
[Termination "kleopl won on time"]

1. c4 {[%clk 0:03:00.9]} 1... e5 {[%clk 0:02:20]} 2. Nc3 {[%clk 0:02:59.5]} 2...
Nc6 {[%clk 0:02:17.9]} 3. Nf3 {[%clk 0:02:59]} 3... Nf6 {[%clk 0:02:16.7]} 4. e4
{[%clk 0:02:59.1]} 4... Bc5 {[%clk 0:02:03.1]} 5. Nxe5 {[%clk 0:02:58.6]} 5...
Nxe5 {[%clk 0:02:04]} 6. d4 {[%clk 0:02:58.2]} 6... Bb4 {[%clk 0:01:38.8]} 7.
dxe5 {[%clk 0:02:57.8]} 7... Nxe4 {[%clk 0:01:33]} 8. Qf3 {[%clk 0:02:58]} 8...
Bxc3+ {[%clk 0:01:26]} 9. bxc3 {[%clk 0:02:58.9]} 9... Ng5 {[%clk 0:01:26.3]}
10. Qg3 {[%clk 0:02:57.3]} 10... Ne6 {[%clk 0:01:26.3]} 11. f4 {[%clk
0:02:56.9]} 11... f5 {[%clk 0:01:14]} 12. Bd3 {[%clk 0:02:53.5]} 12... O-O
{[%clk 0:01:12.4]} 13. O-O {[%clk 0:02:48.5]} 13... Qe7 {[%clk 0:01:11]} 14. a4
{[%clk 0:02:46.7]} 14... Qf7 {[%clk 0:00:41.5]} 15. Ba3 {[%clk 0:02:43.9]} 15...
Re8 {[%clk 0:00:41.8]} 16. a5 {[%clk 0:02:40.9]} 16... b6 {[%clk 0:00:39.7]} 17.
axb6 {[%clk 0:02:40.6]} 17... axb6 {[%clk 0:00:40.6]} 18. Bb4 {[%clk 0:02:36.8]}
18... Bb7 {[%clk 0:00:40.2]} 19. h3 {[%clk 0:02:14.7]} 19... Qg6 {[%clk
0:00:37.4]} 20. Qxg6 {[%clk 0:02:12.8]} 20... hxg6 {[%clk 0:00:37.8]} 21. g3
{[%clk 0:02:10.7]} 21... Kf7 {[%clk 0:00:34.6]} 22. Kf2 {[%clk 0:02:07.5]} 22...
Rh8 {[%clk 0:00:31.8]} 23. h4 {[%clk 0:02:07.6]} 23... Bc6 {[%clk 0:00:29.7]}
24. Ke3 {[%clk 0:02:06.4]} 24... Rhe8 {[%clk 0:00:26.1]} 25. h5 {[%clk
0:02:03.8]} 25... gxh5 {[%clk 0:00:07.6]} 26. Bxf5 {[%clk 0:02:03.1]} 26... g6
{[%clk 0:00:08.1]} 27. Bd3 {[%clk 0:01:58.9]} 27... Rxa1 {[%clk 0:00:08.6]} 28.
Rxa1 {[%clk 0:01:58.4]} 28... Ra8 {[%clk 0:00:09.5]} 29. Rf1 {[%clk 0:01:56.2]}
29... Ra2 {[%clk 0:00:06.9]} 30. f5 {[%clk 0:01:55.1]} 30... gxf5 {[%clk
0:00:07]} 31. Rxf5+ {[%clk 0:01:55.3]} 31... Kg7 {[%clk 0:00:03.3]} 32. Rxh5
{[%clk 0:01:52.3]} 32... Rg2 {[%clk 0:00:03.9]} 33. Rh7+ {[%clk 0:01:45.6]}
33... Kg8 {[%clk 0:00:03.8]} 34. Rh3 {[%clk 0:01:44.8]} 34... Ng5 {[%clk
0:00:04.2]} 35. Rh6 {[%clk 0:01:41.1]} 35... Rxg3+ {[%clk 0:00:04.1]} 36. Kd2
{[%clk 0:01:38.1]} 36... Ne6 {[%clk 0:00:03.9]} 37. Be7 {[%clk 0:01:35.1]} 37...
Kg7 {[%clk 0:00:03.8]} 38. Rh7+ {[%clk 0:01:34.2]} 38... Kg8 {[%clk 0:00:03.4]}
39. Rh6 {[%clk 0:01:30.3]} 39... Kg7 {[%clk 0:00:03.2]} 40. Rh7+ {[%clk
0:01:29.4]} 40... Kg8 {[%clk 0:00:03.3]} 41. Rh4 {[%clk 0:01:30.3]} 41... Rg2+
{[%clk 0:00:03.2]} 42. Ke1 {[%clk 0:01:29.4]} 42... Rg3 {[%clk 0:00:02]} 43. Bf5
{[%clk 0:01:21.9]} 43... Rxc3 {[%clk 0:00:01.7]} 44. Bf6 {[%clk 0:01:22.2]}
44... Kf7 {[%clk 0:00:02.1]} 45. Rh7+ {[%clk 0:01:21.6]} 45... Kf8 {[%clk
0:00:02.5]} 46. Bg6 {[%clk 0:01:20.3]} 1-0

[Event "*** Titled Tuesday Blitz"]
[Site "Chess.com"]
[Date "2020.11.03"]
[Round "10"]
[White "Igor_Lysyj"]
[Black "Kildepiotr"]
[Result "1/2-1/2"]
[WhiteElo "2834"]
[BlackElo "2684"]
[TimeControl "180+1"]
[EndTime "11:59:06 PST"]
[Termination "Game drawn by repetition"]

1. d4 {[%clk 0:03:00.9]} 1... c5 {[%clk 0:02:59.4]} 2. d5 {[%clk 0:02:59.3]}
2... e5 {[%clk 0:02:59.6]} 3. c4 {[%clk 0:02:57.8]} 3... d6 {[%clk 0:02:59.7]}
4. Nc3 {[%clk 0:02:57.8]} 4... Be7 {[%clk 0:03:00.3]} 5. e4 {[%clk 0:02:57]}
5... Bg5 {[%clk 0:03:00.1]} 6. Nf3 {[%clk 0:02:49.3]} 6... Bxc1 {[%clk
0:02:59.5]} 7. Qxc1 {[%clk 0:02:48.8]} 7... Ne7 {[%clk 0:03:00.1]} 8. Qe3 {[%clk
0:02:46]} 8... O-O {[%clk 0:02:59.8]} 9. g3 {[%clk 0:02:43.1]} 9... h6 {[%clk
0:02:58.1]} 10. h4 {[%clk 0:02:40.9]} 10... f5 {[%clk 0:02:58]} 11. Bh3 {[%clk
0:02:40]} 11... f4 {[%clk 0:02:56]} 12. Qe2 {[%clk 0:02:39.4]} 12... Bxh3 {[%clk
0:02:47.2]} 13. Rxh3 {[%clk 0:02:38.8]} 13... Nd7 {[%clk 0:02:46.7]} 14. O-O-O
{[%clk 0:02:27]} 14... a6 {[%clk 0:02:43.2]} 15. Rg1 {[%clk 0:02:25.1]} 15... b5
{[%clk 0:02:39]} 16. Nd2 {[%clk 0:02:13.3]} 16... Kh8 {[%clk 0:02:11.8]} 17. g4
{[%clk 0:01:55.3]} 17... g6 {[%clk 0:02:08.3]} 18. h5 {[%clk 0:01:49.7]} 18...
g5 {[%clk 0:02:07.2]} 19. cxb5 {[%clk 0:01:49.6]} 19... axb5 {[%clk 0:02:05.5]}
20. Qxb5 {[%clk 0:01:49.5]} 20... Qc7 {[%clk 0:01:55.3]} 21. Qe2 {[%clk
0:01:34.8]} 21... Rfb8 {[%clk 0:01:50.8]} 22. Kb1 {[%clk 0:01:32.7]} 22... Rb4
{[%clk 0:01:41.9]} 23. Ka1 {[%clk 0:01:28.2]} 23... Nb6 {[%clk 0:01:36.6]} 24.
Rb1 {[%clk 0:01:21.6]} 24... Na4 {[%clk 0:01:34.9]} 25. b3 {[%clk 0:01:19.9]}
25... Nxc3 {[%clk 0:01:32.6]} 26. Rxc3 {[%clk 0:01:18.7]} 26... Nc8 {[%clk
0:01:30.3]} 27. Nc4 {[%clk 0:01:16.9]} 27... Nb6 {[%clk 0:01:29.9]} 28. Nxb6
{[%clk 0:01:15]} 28... Qxb6 {[%clk 0:01:30.8]} 29. Rb2 {[%clk 0:01:05.6]} 29...
Ra3 {[%clk 0:01:28.8]} 30. Kb1 {[%clk 0:01:03.8]} 30... Kg7 {[%clk 0:01:19.8]}
31. f3 {[%clk 0:01:01]} 31... Kf6 {[%clk 0:01:18.9]} 32. Rc4 {[%clk 0:00:59.8]}
32... Ra7 {[%clk 0:01:14]} 33. Qd3 {[%clk 0:00:56.6]} 33... Ke7 {[%clk
0:01:09.8]} 34. Qc3 {[%clk 0:00:55]} 34... Rxc4 {[%clk 0:01:07.6]} 35. Qxc4
{[%clk 0:00:53.4]} 35... Qa5 {[%clk 0:01:06.4]} 36. b4 {[%clk 0:00:50]} 36...
Qa4 {[%clk 0:01:05.7]} 37. Qc2 {[%clk 0:00:42]} 37... cxb4 {[%clk 0:01:01.3]}
38. Qxa4 {[%clk 0:00:28.3]} 38... Rxa4 {[%clk 0:01:02.2]} 39. Rb3 {[%clk
0:00:23.9]} 39... Kd7 {[%clk 0:01:00.9]} 40. Kb2 {[%clk 0:00:22.9]} 40... Kc7
{[%clk 0:01:00.8]} 41. a3 {[%clk 0:00:21.6]} 41... Rxa3 {[%clk 0:00:55.9]} 42.
Rxa3 {[%clk 0:00:20.3]} 42... bxa3+ {[%clk 0:00:56.1]} 43. Kxa3 {[%clk
0:00:20.4]} 43... Kb6 {[%clk 0:00:56.2]} 44. Kb4 {[%clk 0:00:20.3]} 44... Ka6
{[%clk 0:00:56.3]} 45. Ka4 {[%clk 0:00:20.5]} 45... Kb6 {[%clk 0:00:56.6]} 46.
Kb4 {[%clk 0:00:20.7]} 46... Ka6 {[%clk 0:00:56.9]} 47. Ka4 {[%clk 0:00:21.1]}
47... Kb6 {[%clk 0:00:57.4]} 48. Kb4 {[%clk 0:00:21.4]} 1/2-1/2

[Event "*** Titled Tuesday Blitz"]
[Site "Chess.com"]
[Date "2020.11.03"]
[Round "10"]
[White "Ausbildung"]
[Black "DinaBelenkaya"]
[Result "1-0"]
[WhiteElo "2226"]
[BlackElo "2327"]
[TimeControl "180+1"]
[EndTime "11:59:07 PST"]
[Termination "Ausbildung won by resignation"]

1. e4 {[%clk 0:03:00.9]} 1... d5 {[%clk 0:02:59.6]} 2. exd5 {[%clk 0:02:59.9]}
2... Qxd5 {[%clk 0:03:00.5]} 3. Nc3 {[%clk 0:02:58.8]} 3... Qa5 {[%clk
0:03:00.2]} 4. d4 {[%clk 0:02:57.5]} 4... Nf6 {[%clk 0:02:58.6]} 5. Nf3 {[%clk
0:02:55.6]} 5... c6 {[%clk 0:02:52.3]} 6. h3 {[%clk 0:02:53.5]} 6... Bf5 {[%clk
0:02:51.2]} 7. Ne5 {[%clk 0:02:47]} 7... e6 {[%clk 0:02:50.8]} 8. g4 {[%clk
0:02:45.1]} 8... Bg6 {[%clk 0:02:40.8]} 9. h4 {[%clk 0:02:38.8]} 9... Nbd7
{[%clk 0:02:40.2]} 10. Nc4 {[%clk 0:02:30.8]} 10... Qc7 {[%clk 0:02:30]} 11. h5
{[%clk 0:02:29.1]} 11... Be4 {[%clk 0:02:30]} 12. Nxe4 {[%clk 0:02:23]} 12...
Nxe4 {[%clk 0:02:28.5]} 13. Qf3 {[%clk 0:02:19.9]} 13... Nef6 {[%clk 0:02:10.9]}
14. Bf4 {[%clk 0:02:16.1]} 14... Qd8 {[%clk 0:02:05]} 15. Bd6 {[%clk 0:02:10.1]}
15... Nb6 {[%clk 0:01:59.3]} 16. Bxf8 {[%clk 0:02:06.5]} 16... Rxf8 {[%clk
0:01:58.2]} 17. O-O-O {[%clk 0:02:03.5]} 17... Nfd5 {[%clk 0:01:51.6]} 18. Ne5
{[%clk 0:01:59.1]} 18... Qg5+ {[%clk 0:01:50.4]} 19. Kb1 {[%clk 0:01:52.7]}
19... Qf4 {[%clk 0:01:39.8]} 20. Qe2 {[%clk 0:01:36.8]} 20... h6 {[%clk
0:01:33.7]} 21. Bg2 {[%clk 0:01:31.1]} 21... O-O-O {[%clk 0:01:32.8]} 22. c4
{[%clk 0:01:24.5]} 22... Ne7 {[%clk 0:01:24.9]} 23. Rh3 {[%clk 0:01:16.3]} 23...
Rxd4 {[%clk 0:01:21.7]} 24. Rxd4 {[%clk 0:01:01.9]} 24... Qxd4 {[%clk
0:01:22.6]} 25. Rd3 {[%clk 0:01:01.3]} 25... Qf4 {[%clk 0:01:14.9]} 26. b3
{[%clk 0:00:59.8]} 26... Qh2 {[%clk 0:00:36.8]} 27. Nxf7 {[%clk 0:00:53.9]}
27... Qxg2 {[%clk 0:00:21.1]} 28. Qxe6+ {[%clk 0:00:51.7]} 28... Kb8 {[%clk
0:00:21.4]} 29. Qd6+ {[%clk 0:00:47.9]} 29... Ka8 {[%clk 0:00:19]} 30. Qxe7
{[%clk 0:00:47.1]} 30... Qf1+ {[%clk 0:00:19.2]} 31. Kc2 {[%clk 0:00:45.5]}
31... Qxf2+ {[%clk 0:00:18.9]} 32. Rd2 {[%clk 0:00:43.4]} 32... Qxd2+ {[%clk
0:00:06.3]} 33. Kxd2 {[%clk 0:00:41.7]} 33... Rc8 {[%clk 0:00:07.2]} 34. Nd6
{[%clk 0:00:40.1]} 34... Rb8 {[%clk 0:00:06.9]} 35. Qxg7 {[%clk 0:00:39.5]} 1-0

[Event "*** Titled Tuesday Blitz"]
[Site "Chess.com"]
[Date "2020.11.03"]
[Round "10"]
[White "AntonovaNadezhda"]
[Black "Chessbard1972"]
[Result "0-1"]
[WhiteElo "2125"]
[BlackElo "2283"]
[TimeControl "180+1"]
[EndTime "11:59:07 PST"]
[Termination "Chessbard1972 won by checkmate"]

1. d4 {[%clk 0:03:00.9]} 1... d5 {[%clk 0:02:57.3]} 2. Nf3 {[%clk 0:03:01.4]}
2... c5 {[%clk 0:02:56.8]} 3. e3 {[%clk 0:03:01.3]} 3... Nf6 {[%clk 0:02:55.4]}
4. c3 {[%clk 0:03:00.9]} 4... Nc6 {[%clk 0:02:53.7]} 5. dxc5 {[%clk 0:03:00.9]}
5... e5 {[%clk 0:02:51.8]} 6. Bb5 {[%clk 0:02:57.8]} 6... e4 {[%clk 0:02:51]} 7.
Nd4 {[%clk 0:02:55.5]} 7... Bd7 {[%clk 0:02:50.2]} 8. b4 {[%clk 0:02:49.1]} 8...
Ne5 {[%clk 0:02:49.6]} 9. Bxd7+ {[%clk 0:02:45.4]} 9... Qxd7 {[%clk 0:02:49.5]}
10. O-O {[%clk 0:02:45.2]} 10... Be7 {[%clk 0:02:48.1]} 11. Nd2 {[%clk
0:02:41.6]} 11... O-O {[%clk 0:02:46.8]} 12. Qc2 {[%clk 0:02:41.5]} 12... Qf5
{[%clk 0:02:45.9]} 13. f3 {[%clk 0:02:34.6]} 13... Qh5 {[%clk 0:02:43.1]} 14.
fxe4 {[%clk 0:02:30.6]} 14... Neg4 {[%clk 0:02:39.8]} 15. N2f3 {[%clk
0:02:05.6]} 15... dxe4 {[%clk 0:02:31.6]} 16. h3 {[%clk 0:02:04.1]} 16... exf3
{[%clk 0:02:27.9]} 17. hxg4 {[%clk 0:02:04.1]} 17... Nxg4 {[%clk 0:02:27.9]} 18.
Nxf3 {[%clk 0:02:03.2]} 18... Bg5 {[%clk 0:02:21.8]} 19. e4 {[%clk 0:01:54.9]}
19... Bxc1 {[%clk 0:02:16.9]} 20. Qxc1 {[%clk 0:01:51]} 20... h6 {[%clk
0:02:11.3]} 21. Qf4 {[%clk 0:01:45.8]} 21... Rae8 {[%clk 0:02:03.8]} 22. Rae1
{[%clk 0:01:44.4]} 22... f5 {[%clk 0:01:57.7]} 23. e5 {[%clk 0:01:42.1]} 23...
g5 {[%clk 0:01:54.2]} 24. Qc4+ {[%clk 0:01:41.2]} 24... Kh7 {[%clk 0:01:52.7]}
25. e6 {[%clk 0:01:35.9]} 25... f4 {[%clk 0:01:46.3]} 26. Qe4+ {[%clk
0:01:16.1]} 26... Qg6 {[%clk 0:01:43.5]} 27. Qxb7+ {[%clk 0:01:13.2]} 27... Kh8
{[%clk 0:01:41.7]} 28. Qe4 {[%clk 0:01:11.7]} 28... Qh5 {[%clk 0:01:34]} 29.
Qd4+ {[%clk 0:01:06.7]} 29... Kg8 {[%clk 0:01:32]} 30. c6 {[%clk 0:01:04.3]}
30... Ne3 {[%clk 0:01:30.5]} 31. Rf2 {[%clk 0:00:48.9]} 31... g4 {[%clk
0:01:29.4]} 32. Ne5 {[%clk 0:00:13.9]} 32... g3 {[%clk 0:01:26.7]} 33. Nf3
{[%clk 0:00:13.4]} 33... gxf2+ {[%clk 0:01:24.6]} 34. Kxf2 {[%clk 0:00:14]}
34... Qg6 {[%clk 0:01:18.2]} 35. Rxe3 {[%clk 0:00:13.1]} 35... fxe3+ {[%clk
0:01:15.6]} 36. Qxe3 {[%clk 0:00:13.2]} 36... Rxe6 {[%clk 0:01:15.4]} 37. Qxa7
{[%clk 0:00:12]} 37... Rxc6 {[%clk 0:01:14.3]} 38. Qd4 {[%clk 0:00:09.1]} 38...
Rd6 {[%clk 0:01:13.1]} 39. Qc4+ {[%clk 0:00:08.3]} 39... Kh8 {[%clk 0:01:12.2]}
40. b5 {[%clk 0:00:07.2]} 40... Qc2+ {[%clk 0:01:10.6]} 41. Kg3 {[%clk
0:00:06.4]} 41... Rg6+ {[%clk 0:01:09]} 42. Kh4 {[%clk 0:00:03.4]} 42... Qxg2
{[%clk 0:01:07.3]} 43. Qd4+ {[%clk 0:00:03.5]} 43... Rg7 {[%clk 0:01:07.2]} 44.
Ne5 {[%clk 0:00:01.9]} 44... Qh2# {[%clk 0:01:05.2]} 0-1

[Event "*** Titled Tuesday Blitz"]
[Site "Chess.com"]
[Date "2020.11.03"]
[Round "10"]
[White "Smirnov_Pavel"]
[Black "DryCounty"]
[Result "1-0"]
[WhiteElo "2837"]
[BlackElo "2568"]
[TimeControl "180+1"]
[EndTime "11:59:08 PST"]
[Termination "Smirnov_Pavel won by resignation"]

1. d4 {[%clk 0:02:09.4]} 1... Nf6 {[%clk 0:02:57.6]} 2. c4 {[%clk 0:02:08.3]}
2... g6 {[%clk 0:02:57.1]} 3. Nf3 {[%clk 0:02:09.2]} 3... Bg7 {[%clk 0:02:56.2]}
4. Nc3 {[%clk 0:02:10.1]} 4... O-O {[%clk 0:02:50]} 5. e4 {[%clk 0:02:09.5]}
5... d6 {[%clk 0:02:50.4]} 6. Be2 {[%clk 0:02:10.4]} 6... e5 {[%clk 0:02:50.5]}
7. d5 {[%clk 0:02:10.2]} 7... Na6 {[%clk 0:02:49.8]} 8. O-O {[%clk 0:02:08.9]}
8... c5 {[%clk 0:02:45.8]} 9. Rb1 {[%clk 0:02:07.2]} 9... Nh5 {[%clk 0:02:39.8]}
10. a3 {[%clk 0:02:08.1]} 10... f5 {[%clk 0:02:35.9]} 11. b4 {[%clk 0:02:04.3]}
11... Nf6 {[%clk 0:02:31.3]} 12. Ng5 {[%clk 0:01:53.9]} 12... Qe7 {[%clk
0:02:27.6]} 13. Be3 {[%clk 0:01:44.5]} 13... f4 {[%clk 0:02:24.2]} 14. Bd2
{[%clk 0:01:44.2]} 14... h6 {[%clk 0:02:22.2]} 15. Ne6 {[%clk 0:01:44.2]} 15...
Bxe6 {[%clk 0:02:17.8]} 16. dxe6 {[%clk 0:01:45.1]} 16... Qxe6 {[%clk
0:02:17.5]} 17. Nd5 {[%clk 0:01:46]} 17... Qf7 {[%clk 0:01:52.6]} 18. Nxf6+
{[%clk 0:01:33.1]} 18... Bxf6 {[%clk 0:01:51]} 19. Bg4 {[%clk 0:01:34]} 19...
Kh7 {[%clk 0:01:42.1]} 20. Qe2 {[%clk 0:01:30.5]} 20... b6 {[%clk 0:01:39.9]}
21. Rfd1 {[%clk 0:01:29.6]} 21... Nc7 {[%clk 0:01:37.2]} 22. Be1 {[%clk
0:01:28.4]} 22... Rad8 {[%clk 0:01:34.9]} 23. a4 {[%clk 0:01:23.4]} 23... h5
{[%clk 0:01:27.3]} 24. Bh3 {[%clk 0:01:19.5]} 24... Ne6 {[%clk 0:01:27.1]} 25.
Bxe6 {[%clk 0:01:16.4]} 25... Qxe6 {[%clk 0:01:28]} 26. a5 {[%clk 0:01:16.7]}
26... cxb4 {[%clk 0:01:22.1]} 27. axb6 {[%clk 0:01:14.2]} 27... axb6 {[%clk
0:01:21.6]} 28. Rxb4 {[%clk 0:01:15.1]} 28... Be7 {[%clk 0:01:11]} 29. Rxb6
{[%clk 0:01:11.7]} 29... f3 {[%clk 0:01:09.8]} 30. gxf3 {[%clk 0:01:10.3]} 30...
Rc8 {[%clk 0:00:59.1]} 31. Bb4 {[%clk 0:01:06.3]} 31... Rxc4 {[%clk 0:00:42.2]}
32. Bxd6 {[%clk 0:01:01.2]} 32... Rd8 {[%clk 0:00:22.5]} 33. Rb7 {[%clk
0:00:51.1]} 33... Rxd6 {[%clk 0:00:13.4]} 34. Rxd6 {[%clk 0:00:52]} 34... Rc1+
{[%clk 0:00:07.8]} 35. Rd1 {[%clk 0:00:50.9]} 35... Rxd1+ {[%clk 0:00:07.4]} 36.
Qxd1 {[%clk 0:00:51.8]} 36... Kh6 {[%clk 0:00:07.5]} 37. Qd7 {[%clk 0:00:50.8]}
37... Qc4 {[%clk 0:00:02.9]} 38. Qxe7 {[%clk 0:00:48.9]} 38... Qc1+ {[%clk
0:00:02.9]} 39. Kg2 {[%clk 0:00:49.5]} 1-0

[Event "*** Titled Tuesday Blitz"]
[Site "Chess.com"]
[Date "2020.11.03"]
[Round "10"]
[White "GelmanAlexander"]
[Black "SanchezKelvin"]
[Result "1-0"]
[WhiteElo "2599"]
[BlackElo "2434"]
[TimeControl "180+1"]
[EndTime "11:59:08 PST"]
[Termination "GelmanAlexander won by checkmate"]

1. d4 {[%clk 0:03:00.9]} 1... Nf6 {[%clk 0:02:59.2]} 2. Nc3 {[%clk 0:03:01.1]}
2... d5 {[%clk 0:02:56.5]} 3. Bf4 {[%clk 0:03:01.2]} 3... c5 {[%clk 0:02:54.6]}
4. e3 {[%clk 0:03:01]} 4... cxd4 {[%clk 0:02:53.2]} 5. exd4 {[%clk 0:03:01.1]}
5... a6 {[%clk 0:02:51.9]} 6. Nf3 {[%clk 0:03:01.3]} 6... Nc6 {[%clk 0:02:51.6]}
7. Ne5 {[%clk 0:03:01.4]} 7... Qb6 {[%clk 0:02:45.1]} 8. Nxc6 {[%clk 0:02:57.4]}
8... bxc6 {[%clk 0:02:41.5]} 9. Na4 {[%clk 0:02:40.3]} 9... Qa5+ {[%clk
0:02:40.9]} 10. c3 {[%clk 0:02:40.6]} 10... Bg4 {[%clk 0:02:36.2]} 11. f3 {[%clk
0:02:36.1]} 11... Bf5 {[%clk 0:02:35.9]} 12. g4 {[%clk 0:02:05.9]} 12... Bc8
{[%clk 0:02:25.8]} 13. Bd3 {[%clk 0:01:54.6]} 13... Nd7 {[%clk 0:02:17.3]} 14.
b4 {[%clk 0:01:42.9]} 14... Qd8 {[%clk 0:02:16.6]} 15. Kf2 {[%clk 0:01:39.6]}
15... e6 {[%clk 0:02:15.4]} 16. h4 {[%clk 0:01:36.4]} 16... Be7 {[%clk
0:02:15.1]} 17. g5 {[%clk 0:01:35.3]} 17... h6 {[%clk 0:02:01.9]} 18. Qd2 {[%clk
0:01:18.1]} 18... hxg5 {[%clk 0:01:38.3]} 19. hxg5 {[%clk 0:01:16.8]} 19... Rxh1
{[%clk 0:01:38.8]} 20. Rxh1 {[%clk 0:01:17.2]} 20... a5 {[%clk 0:01:38.9]} 21.
Rh8+ {[%clk 0:01:12.2]} 21... Nf8 {[%clk 0:01:38.2]} 22. Nc5 {[%clk 0:01:06.6]}
22... axb4 {[%clk 0:01:33.3]} 23. cxb4 {[%clk 0:01:07.5]} 23... Qb6 {[%clk
0:01:06.3]} 24. a4 {[%clk 0:01:06.1]} 24... Bd7 {[%clk 0:00:47]} 25. a5 {[%clk
0:00:59.4]} 25... Qa7 {[%clk 0:00:43.9]} 26. Qc3 {[%clk 0:00:50.6]} 26... e5
{[%clk 0:00:40.2]} 27. Bxe5 {[%clk 0:00:44.8]} 27... Bxg5 {[%clk 0:00:39.2]} 28.
Bd6 {[%clk 0:00:38.8]} 28... Be7 {[%clk 0:00:37.6]} 29. Qe1 {[%clk 0:00:35.5]}
29... Bc8 {[%clk 0:00:30.5]} 30. b5 {[%clk 0:00:23.7]} 30... cxb5 {[%clk
0:00:22.9]} 31. Bxb5+ {[%clk 0:00:21]} 31... Kd8 {[%clk 0:00:23]} 32. Rxf8+
{[%clk 0:00:16]} 32... Bxf8 {[%clk 0:00:22.6]} 33. Qe8# {[%clk 0:00:16.1]} 1-0